fUST/lending_fUST_20251018
["ID","MTS","AMOUNT","RATE_DAILY","PERIOD"]
[391661877,1760722255434,-1000.0,0.00028521,5]
[391661878,1760722255443,-1000.0,0.00028521,5]
[391661880,1760722255453,-1117.8864804,0.00028521,5]
[391661882,1760722255462,-1000.0,0.00028521,5]
[391661884,1760722255471,-963.24155343,0.00028521,5]
[391661886,1760722255481,-500.0,0.00028521,5]
[391661888,1760722255490,-1000.0,0.00028521,5]
[391661890,1760722255500,-1000.0,0.00028521,5]
[391661893,1760722255511,-1000.0,0.00028521,5]
[391661895,1760722255521,-235.16621169,0.00028521,5]
[391661897,1760722255535,-1000.0,0.00028521,4]
[391661899,1760722255547,-1000.0,0.00028521,5]
[391661901,1760722255558,-1000.0,0.00028521,5]
[391661903,1760722255567,-500.0,0.00028521,5]
[391661905,1760722255577,-1000.0,0.00028521,5]
[391661907,1760722255586,-1000.0,0.00028521,5]
[391661908,1760722255596,-1000.0,0.00028521,5]
[391661910,1760722255605,-833.39005881,0.00028521,5]
[391661913,1760722255615,-1000.0,0.00028521,2]
[391661914,1760722255624,-500.0,0.00028521,5]
[391661917,1760722255633,-509.13104249,0.00028521,5]
[391661918,1760722255643,-1000.0,0.00028521,5]
[391661920,1760722255652,-1000.0,0.00028521,5]
[391661922,1760722255662,-1000.0,0.00028521,5]
[391661924,1760722255671,-602.34,0.00028526,9]
[391661926,1760722255679,-485.0,0.00028531,5]
[391661928,1760722255689,-524.0,0.00028531,5]
[391661930,1760722255698,-4084.27078244,0.00028533,2]
[391661932,1760722255707,-45304.4630376,0.00028543,2]
[391661934,1760722255716,-9437.1475008,0.00028552,2]
[391661936,1760722255725,-1678.4615188,0.00028553,2]
[391661943,1760722255788,-150.0,0.00028573,5]
[391661945,1760722255798,-150.0,0.00028573,5]
[391661948,1760722255811,-4084.27078244,0.00028573,2]
[391661949,1760722255829,-328.0,0.00028575,2]
[391661952,1760722255839,-207.14459086,0.00028583,2]
[391661954,1760722255848,-372.86026355,0.00028583,2]
[391661956,1760722255857,-662.19982807,0.00028583,2]
[391661958,1760722255866,-415.32109559,0.00028583,2]
[391661960,1760722255876,-747.57797206,0.00028583,2]
[391661962,1760722255885,-1329.02750589,0.00028583,2]
[391661964,1760722255895,-2076.60547796,0.00028583,2]
[391661966,1760722255904,-730.12332161,0.00028583,2]
[391661967,1760722255914,-1314.2219789,0.00028583,2]
[391661969,1760722255923,-328.0,0.00028585,7]
[391661971,1760722255932,-485.0,0.00028585,5]
[391661973,1760722255942,-524.0,0.00028585,5]
[391661975,1760722255951,-151.0,0.000286,13]
[391661977,1760722255961,-29362.58,0.000286,7]
[391661979,1760722255970,-4271.41,0.000286,2]
[391661981,1760722255981,-160.0,0.000286,7]
[391661984,1760722255991,-3392.42,0.000286,2]
[391661985,1760722256000,-4084.27078244,0.0002861,2]
[391661987,1760722256010,-2990.31188826,0.0002862,2]
[391661989,1760722256020,-168.0,0.00028628,7]
[391661991,1760722256030,-485.0,0.0002864,5]
[391661993,1760722256039,-524.0,0.0002864,5]
[391661995,1760722256048,-485.0,0.00028695,5]
[391661997,1760722256057,-524.0,0.00028695,5]
[391661999,1760722256067,-166.0,0.00028738,2]
[391662001,1760722256076,-22309.888401,0.00028738,2]
[391662003,1760722256085,-805.0,0.00028743,7]
[391662005,1760722256095,-485.0,0.0002875,5]
[391662007,1760722256104,-524.0,0.0002875,5]
[391662009,1760722256113,-500.0,0.00028753,30]
[391662011,1760722256123,-988.43093777,0.0002876,2]
[391662013,1760722256132,-521.37491996,0.0002876,2]
[391662015,1760722256141,-500.0,0.00028767,30]
[391662017,1760722256151,-500.0,0.00028767,30]
[391662019,1760722256160,-500.0,0.00028767,30]
[391662021,1760722256170,-500.0,0.00028767,30]
[391662023,1760722256179,-500.0,0.00028767,30]
[391662025,1760722256188,-500.0,0.00028767,30]
[391662027,1760722256197,-487.57514327,0.00028768,5]
[391662030,1760722256210,-1500.0,0.00028768,5]
[391662032,1760722256230,-1502.69848614,0.00028768,5]
[391662035,1760722256244,-1500.0,0.00028768,2]
[391662038,1760722256269,-1500.0,0.00028768,5]
[391662041,1760722256288,-1500.0,0.00028768,5]
[391662044,1760722256304,-593.49629733,0.00028768,5]
[391662046,1760722256322,-1007.37440914,0.00028768,5]
[391662049,1760722256343,-1500.0,0.00028768,5]
[391662052,1760722256356,-1500.0,0.00028768,5]
[391662055,1760722256375,-1500.0,0.00028768,5]
[391662058,1760722256393,-1500.0,0.00028768,2]
[391662060,1760722256411,-1500.0,0.00028768,5]
[391662063,1760722256424,-1500.0,0.00028768,5]
[391662066,1760722256443,-1500.0,0.00028768,5]
[391662068,1760722256456,-1322.36522226,0.00028768,5]
[391662071,1760722256471,-1500.0,0.00028768,5]
[391662073,1760722256484,-1500.0,0.00028768,5]
[391662076,1760722256498,-1500.0,0.00028768,5]
[391662078,1760722256513,-348.44036682,0.00028768,5]
[391662081,1760722256526,-1000.0,0.00028768,5]
[391662083,1760722256540,-1500.0,0.00028768,5]
[391662086,1760722256555,-459.85416183,0.00028768,5]
[391662088,1760722256569,-1500.0,0.00028768,5]
[391662091,1760722256583,-806.6626201,0.00028768,5]
[391662093,1760722256598,-2336.39462915,0.00028782,2]
[391662096,1760722256615,-151.0,0.000288,20]
[391662099,1760722256629,-602.34,0.000288,10]
[391662101,1760722256644,-485.0,0.00028805,5]
[391662104,1760722256658,-524.0,0.00028805,5]
[391662106,1760722256672,-319.14962582,0.00028805,2]
[391662109,1760722256686,-328.0,0.00028835,7]
[391662111,1760722256701,-485.0,0.00028859,5]
[391662114,1760722256716,-524.0,0.00028859,5]
[391662116,1760722256730,-328.0,0.00028881,2]
[391662119,1760722256745,-9437.1475008,0.00028884,2]
[391662121,1760722256758,-168.0,0.00028904,2]
[391662124,1760722256773,-4070.1467368,0.0002891,2]
[391662126,1760722256788,-485.0,0.00028914,5]
[391662129,1760722256803,-524.0,0.00028914,5]
[391662132,1760722256817,-300.0,0.00028964,30]
[391662134,1760722256831,-300.0,0.00028964,30]
[391662137,1760722256847,-300.0,0.00028964,30]
[391662139,1760722256860,-300.0,0.00028964,30]
[391662149,1760722256948,-300.0,0.00028964,30]
[391662151,1760722256958,-300.0,0.00028964,30]
[391662153,1760722256967,-300.0,0.00028964,30]
[391662155,1760722256976,-300.0,0.00028964,30]
[391662157,1760722256985,-300.0,0.00028964,30]
[391662159,1760722256994,-300.0,0.00028964,30]
[391662161,1760722257003,-300.0,0.00028964,30]
[391662163,1760722257013,-300.0,0.00028964,30]
[391662165,1760722257022,-300.0,0.00028964,30]
[391662167,1760722257032,-300.0,0.00028964,30]
[391662169,1760722257041,-300.0,0.00028964,30]
[391662171,1760722257053,-573.5665844,0.00028968,5]
[391662173,1760722257062,-1001.79380345,0.00028968,5]
[391662175,1760722257073,-447.02495962,0.00028968,5]
[391662177,1760722257082,-1500.0,0.00028968,5]
[391662179,1760722257092,-490.41827492,0.00028968,5]
[391662181,1760722257102,-1500.0,0.00028968,5]
[391662183,1760722257111,-1500.0,0.00028968,5]
[391662185,1760722257121,-1500.0,0.00028968,5]
[391662187,1760722257131,-1500.0,0.00028968,5]
[391662189,1760722257141,-485.0,0.00028969,5]
[391662191,1760722257150,-524.0,0.00028969,5]
[391662193,1760722257160,-7644.26194408,0.00028976,2]
[391662195,1760722257170,-967.0,0.00028984,2]
[391662197,1760722257180,-805.0,0.00028994,7]
[391662199,1760722257190,-360.0,0.00028996,2]
[391662201,1760722257200,-3547.49182322,0.00029,2]
[391662203,1760722257210,-151.0,0.00029,10]
[391662205,1760722257220,-502.14410151,0.00029,7]
[391662206,1760722257229,-4682.42,0.00029006,3]
[391662209,1760722257240,-2341.2,0.00029006,3]
[391662211,1760722257250,-1170.6,0.00029006,3]
[391662213,1760722257262,-585.3,0.00029006,3]
[391662215,1760722257272,-250.0,0.00029021,5]
[391662217,1760722257282,-485.0,0.00029024,5]
[391662218,1760722257292,-524.0,0.00029024,5]
[391662220,1760722257302,-500.0,0.00029027,30]
[391662222,1760722257311,-150.13050197,0.00029029,2]
[391662224,1760722257321,-956.00500051,0.00029042,120]
[391662226,1760722257332,-805.0,0.0002905,2]
[391662229,1760722257343,-1013.46859347,0.00029068,5]
[391662231,1760722257352,-1500.0,0.00029068,5]
[391662232,1760722257362,-1500.0,0.00029068,5]
[391662234,1760722257372,-1506.6509882,0.00029068,5]
[391662236,1760722257381,-506.98259656,0.00029068,5]
[391662238,1760722257391,-1500.0,0.00029068,5]
[391662240,1760722257400,-1500.0,0.00029068,5]
[391662242,1760722257410,-1500.0,0.00029068,5]
[391662244,1760722257420,-1507.01777955,0.00029068,5]
[391662246,1760722257430,-1500.0,0.00029068,5]
[391662249,1760722257442,-1500.0,0.00029068,4]
[391662251,1760722257451,-503.91128656,0.00029068,5]
[391662253,1760722257459,-1500.0,0.00029068,5]
[391662254,1760722257469,-1500.0,0.00029068,5]
[391662256,1760722257478,-1500.0,0.00029068,5]
[391662258,1760722257488,-1500.0,0.00029068,5]
[391662260,1760722257497,-1540.48924573,0.00029068,2]
[391662262,1760722257506,-1011.33957118,0.00029068,5]
[391662264,1760722257515,-1500.0,0.00029068,5]
[391662266,1760722257525,-1541.70418342,0.0002907,2]
[391662268,1760722257535,-602.34,0.00029074,11]
[391662270,1760722257545,-485.0,0.00029078,5]
[391662272,1760722257554,-524.0,0.00029078,5]
[391662275,1760722257564,-339.946226,0.000291,2]
[391662277,1760722257574,-194.412652,0.000291,2]
[391662278,1760722257583,-250.0,0.00029121,5]
[391662280,1760722257592,-300.0,0.00029121,5]
[391662282,1760722257602,-498.60731944,0.00029133,5]
[391662284,1760722257612,-544.0,0.00029133,5]
[391662286,1760722257621,-151.0,0.000292,12]
[391662288,1760722257632,-5316.11002357,0.00029201,2]
[391662290,1760722257641,-2247.11535132,0.00029223,2]
[391662292,1760722257651,-150.0,0.00029248,2]
[391662295,1760722257661,-166.0,0.00029286,2]
[391662296,1760722257671,-23135.35427183,0.00029286,2]
[391662298,1760722257680,-500.0,0.00029301,30]
[391662300,1760722257689,-5198.48,0.00029301,6]
[391662302,1760722257699,-3650.61660805,0.00029303,2]
[391662304,1760722257708,-1121.2588575,0.00029316,5]
[391662306,1760722257718,-2000.0,0.00029316,2]
[391662308,1760722257727,-2000.0,0.00029316,5]
[391662310,1760722257737,-1001.88854632,0.00029316,5]
[391662312,1760722257748,-1501.82012558,0.00029316,5]
[391662314,1760722257758,-1256.89356541,0.00029316,5]
[391662316,1760722257768,-322.56569335,0.00029316,5]
[391662318,1760722257778,-1110.63519247,0.00029316,5]
[391662320,1760722257787,-2000.0,0.00029316,5]
[391662322,1760722257796,-2000.0,0.00029316,5]
[391662324,1760722257806,-305.0147208,0.00029316,5]
[391662326,1760722257815,-2000.0,0.00029316,5]
[391662328,1760722257824,-2000.0,0.00029316,5]
[391662330,1760722257833,-1999.94951459,0.00029316,5]
[391662332,1760722257843,-2000.0,0.00029316,5]
[391662334,1760722257852,-150.0,0.0002933,5]
[391662335,1760722257861,-602.34,0.00029348,12]
[391662342,1760722257870,-805.0,0.00029386,7]
[391662345,1760722257933,-151.0,0.000294,20]
[391662347,1760722257943,-344.34564891,0.00029405,2]
[391662349,1760722257953,-178.37,0.0002941,120]
[391662351,1760722257962,-5000.0,0.00029472,2]
[391662353,1760722257972,-6728.20174858,0.00029492,2]
[391662355,1760722257982,-3392.42,0.000295,2]
[391662356,1760722257991,-2000.0,0.00029516,5]
[391662358,1760722258001,-1180.26514236,0.00029516,5]
[391662361,1760722258012,-1774.48517451,0.00029516,5]
[391662363,1760722258021,-775.90838956,0.00029516,5]
[391662364,1760722258030,-2000.0,0.00029516,5]
[391662367,1760722258043,-460.0,0.00029544,2]
[391662368,1760722258053,-420.0,0.00029553,2]
[391662370,1760722258062,-420.0,0.00029553,2]
[391662372,1760722258071,-420.0,0.00029553,2]
[391662374,1760722258081,-420.0,0.00029553,2]
[391662376,1760722258091,-500.0,0.00029568,7]
[391662378,1760722258100,-350.0,0.00029568,5]
[391662380,1760722258110,-500.0,0.00029575,30]
[391662382,1760722258120,-151.0,0.000296,15]
[391662384,1760722258129,-1444.03448406,0.00029616,5]
[391662386,1760722258138,-2000.0,0.00029616,5]
[391662388,1760722258148,-1500.0,0.00029616,5]
[391662390,1760722258157,-507.01438462,0.00029616,5]
[391662392,1760722258166,-2000.0,0.00029616,5]
[391662394,1760722258176,-506.96873183,0.00029616,5]
[391662396,1760722258185,-2000.0,0.00029616,4]
[391662398,1760722258195,-427.21391195,0.00029616,5]
[391662400,1760722258204,-2000.0,0.00029616,5]
[391662402,1760722258213,-2000.0,0.00029616,5]
[391662404,1760722258223,-427.03514338,0.00029616,5]
[391662405,1760722258232,-2000.0,0.00029616,5]
[391662407,1760722258242,-602.34,0.00029622,13]
[391662409,1760722258254,-805.0,0.00029633,2]
[391662411,1760722258268,-350.0,0.00029668,5]
[391662413,1760722258278,-230.4443018,0.00029668,5]
[391662415,1760722258287,-339.946226,0.0002967,2]
[391662417,1760722258296,-194.412652,0.0002967,2]
[391662419,1760722258306,-1680.0,0.00029681,2]
[391662421,1760722258315,-197800.88854722,0.000297,2]
[391662437,1760722258462,-18881.63577067,0.000297,2]
[391662440,1760722258482,-6174.11685348,0.000297,2]
[391662478,1760722258862,-3e-08,0.00027642,2]
[391662510,1760722259185,226.06,0.00023748,2]
[391662516,1760722259227,452.12,0.00025906,2]
[391663228,1760722319284,219.34,0.0002603,2]
[391663229,1760722373573,402.69031254,0.00027,2]
[391663230,1760722402754,200.0,0.00022972,2]
[391663231,1760722404250,216.55,0.00023864,2]
[391663232,1760722404649,433.09,0.00026033,2]
[391663233,1760722425913,210.7672091,0.00026564,2]
[391663234,1760722487617,208.28,0.00023651,2]
[391663235,1760722488541,416.56,0.00025802,2]
[391663236,1760722490669,150.0,0.00025205,2]
[391663241,1760722491942,172.5,0.00025805,2]
[391663242,1760722492430,195.0,0.00026405,2]
[391663243,1760722527926,2000.0,0.00034121,60]
[391663244,1760722529135,160.0,0.00027,2]
[391663245,1760722529186,417.15472785,0.00027,2]
[391663246,1760722540116,95000.0,0.0002648,30]
[391663307,1760722566078,1000.0,0.00034121,60]
[391663309,1760722572383,200.33,0.00023463,2]
[391663310,1760722573223,242.82966405,0.00025596,2]
[391663311,1760722573251,157.82033595,0.00025596,2]
[391663312,1760722577023,161.0,0.00024411,13]
[391663327,1760722622362,1500.0,0.00034121,60]
[391663338,1760722655420,192.68,0.00023477,2]
[391663339,1760722655875,385.35,0.00025611,2]
[391663340,1760722680181,210.43,0.00015494,9]
[391663342,1760722680474,210.43,0.00015494,9]
[391663343,1760722680725,210.43,0.00015494,9]
[391663344,1760722694777,402.69031254,0.00027,2]
[391663345,1760722738980,185.32,0.00023519,2]
[391663346,1760722739439,370.64,0.00025657,2]
[391663347,1760722748610,1000.0,0.00026509,30]
[391663349,1760722822304,178.24,0.00023498,2]
[391663350,1760722823966,356.49,0.00025634,2]
[391663352,1760722845878,491.218618,0.00013699,2]
[391663353,1760722846114,491.218618,0.00020187,2]
[391663354,1760722846327,491.218618,0.00026676,2]
[391663356,1760722906602,171.44,0.00023801,2]
[391663357,1760722907042,342.88,0.00025964,2]
[391663361,1760722991962,164.89,0.00023486,2]
[391663362,1760722992523,329.78,0.00025621,2]
[391663363,1760723016082,402.69031254,0.00027,2]
[391663364,1760723031648,256.77559066,0.00026467,2]
[391663365,1760723031675,52544.31549684,0.00026467,2]
[391663366,1760723074498,158.6,0.00023396,2]
[391663367,1760723075274,317.19,0.00025523,2]
[391663369,1760723117375,152.09100838,0.00025205,2]
[391663370,1760723118115,174.90465963,0.00025805,2]
[391663371,1760723119113,197.71831089,0.00026405,2]
[391663372,1760723157330,152.54,0.00023399,2]
[391663373,1760723157787,305.08,0.00025526,2]
[391663375,1760723166016,250.0,0.00026144,2]
[391663377,1760723210125,-220.53196215,0.00027005,2]
[391663378,1760723210146,-44.22580745,0.00027246,2]
[391663382,1760723240173,150.0,0.00023374,2]
[391663383,1760723240617,293.43,0.00025499,2]
[391663397,1760723326052,150.0,0.0002355,2]
[391663398,1760723326486,282.15,0.00025691,2]
[391663399,1760723343314,402.69031254,0.00027,2]
[391663400,1760723356109,1512.2781866,0.00026811,18]
[391663402,1760723402639,177.02191215,0.00026742,5]
[391663403,1760723410449,150.0,0.00023498,2]
[391663404,1760723410913,271.15,0.00025635,2]
[391663434,1760723431946,-335.2263162,0.00027079,18]
[391663436,1760723431956,-122.06861725,0.00027246,2]
[391663438,1760723431965,-737.38841455,0.00027324,3]
[391663567,1760723437832,-542.75715174,0.00027324,3]
[391663569,1760723437842,-1280.14,0.00027333,3]
[391663571,1760723437851,-1200.0,0.00027522,2]
[391663573,1760723437861,-1788.62826039,0.00027523,2]
[391663575,1760723437873,-168.0,0.00027561,2]
[391663577,1760723437882,-300.0,0.00027561,2]
[391663579,1760723437891,-300.0,0.00027561,2]
[391663581,1760723437901,-300.0,0.00027561,2]
[391663583,1760723437910,-5879.13390115,0.00027562,2]
[391663585,1760723437920,-243.3456134,0.00027605,2]
[391663587,1760723437930,-359.59,0.00027613,10]
[391663589,1760723437939,-685.7,0.00027613,10]
[391663591,1760723437948,-333.44,0.00027614,3]
[391663593,1760723437957,-166.72,0.00027614,3]
[391663595,1760723437966,-500.18,0.00027614,3]
[391663597,1760723437976,-1333.74,0.00027615,3]
[391663599,1760723437986,-666.87,0.00027615,3]
[391663601,1760723437995,-1000.0,0.00027618,2]
[391663603,1760723438004,-151.0,0.00027618,2]
[391663605,1760723438014,-1000.0,0.00027618,2]
[391663607,1760723438023,-151.0,0.00027618,2]
[391663609,1760723438032,-1000.0,0.00027618,2]
[391663611,1760723438042,-151.30500482,0.00027618,2]
[391663613,1760723438052,-1000.0,0.00027618,2]
[391663615,1760723438062,-1000.0,0.00027618,2]
[391663618,1760723438072,-151.0,0.00027618,2]
[391663620,1760723438083,-151.0,0.00027618,2]
[391663622,1760723438093,-1000.0,0.00027618,2]
[391663624,1760723438101,-151.0,0.00027618,2]
[391663626,1760723438111,-151.0,0.00027618,2]
[391663628,1760723438121,-1000.0,0.00027618,2]
[391663630,1760723438130,-151.0,0.00027618,2]
[391663632,1760723438139,-1000.0,0.00027618,2]
[391663634,1760723438149,-1000.0,0.00027618,2]
[391663635,1760723438158,-151.0,0.00027618,2]
[391663637,1760723438168,-1000.0,0.00027618,2]
[391663640,1760723438183,-151.0,0.00027618,2]
[391663642,1760723438192,-1000.0,0.00027618,2]
[391663644,1760723438202,-151.0,0.00027618,2]
[391663646,1760723438211,-1000.0,0.00027618,2]
[391663648,1760723438221,-166.0,0.00027618,2]
[391663650,1760723438231,-151.0,0.00027618,2]
[391663652,1760723438241,-1000.0,0.00027618,2]
[391663654,1760723438251,-151.0,0.00027618,2]
[391663655,1760723438260,-1000.0,0.00027618,2]
[391663657,1760723438269,-151.0,0.00027618,2]
[391663659,1760723438279,-151.0,0.00027618,2]
[391663661,1760723438288,-1000.0,0.00027618,2]
[391663663,1760723438299,-5515.12095662,0.00027618,2]
[391663665,1760723438308,-203.86058603,0.00027618,2]
[391663667,1760723438318,-250.0,0.00027618,2]
[391663669,1760723438329,-151.0,0.00027618,2]
[391663671,1760723438339,-1000.0,0.00027618,2]
[391663673,1760723438349,-151.0,0.00027618,2]
[391663675,1760723438358,-250.0,0.00027618,2]
[391663677,1760723438367,-151.0,0.00027618,2]
[391663679,1760723438376,-1000.0,0.00027618,2]
[391663681,1760723438386,-250.0,0.00027618,2]
[391663683,1760723438395,-151.0,0.00027618,2]
[391663685,1760723438404,-1000.0,0.00027618,2]
[391663687,1760723438413,-151.0,0.00027618,2]
[391663689,1760723438422,-250.0,0.00027618,2]
[391663691,1760723438432,-211.6376636,0.00027618,2]
[391663693,1760723438441,-1000.0,0.00027618,2]
[391663695,1760723438450,-151.0,0.00027618,2]
[391663697,1760723438459,-250.0,0.00027618,2]
[391663699,1760723438469,-1000.0,0.00027618,2]
[391663701,1760723438478,-277.94260134,0.00027618,2]
[391663703,1760723438487,-250.0,0.00027618,2]
[391663705,1760723438497,-250.0,0.00027618,2]
[391663707,1760723438506,-250.0,0.00027618,2]
[391663709,1760723438516,-250.0,0.00027618,2]
[391663711,1760723438525,-250.0,0.00027618,2]
[391663713,1760723438534,-250.0,0.00027618,2]
[391663715,1760723438543,-250.0,0.00027618,2]
[391663717,1760723438552,-250.0,0.00027618,2]
[391663719,1760723438562,-250.0,0.00027618,2]
[391663721,1760723438571,-250.0,0.00027618,2]
[391663723,1760723438581,-250.0,0.00027618,2]
[391663725,1760723438594,-250.0,0.00027618,2]
[391663727,1760723438603,-250.0,0.00027618,2]
[391663729,1760723438612,-250.0,0.00027618,2]
[391663731,1760723438621,-250.0,0.00027618,2]
[391663733,1760723438632,-250.0,0.00027618,2]
[391663734,1760723438640,-250.0,0.00027618,2]
[391663735,1760723438649,-250.0,0.00027618,2]
[391663736,1760723438658,-250.0,0.00027618,2]
[391663737,1760723438669,-250.0,0.00027618,2]
[391663738,1760723438678,-250.0,0.00027618,2]
[391663739,1760723438687,-500.0,0.00027622,2]
[391663740,1760723438696,-500.0,0.00027622,2]
[391663741,1760723438705,-564.2677889,0.00027622,2]
[391663742,1760723438714,-500.0,0.00027622,2]
[391663743,1760723438722,-500.0,0.00027622,2]
[391663744,1760723438731,-183.22605,0.00027622,2]
[391663745,1760723438741,-500.0,0.00027622,2]
[391663746,1760723438750,-500.0,0.00027622,2]
[391663747,1760723438759,-500.0,0.00027622,2]
[391663748,1760723438768,-500.0,0.00027622,2]
[391663749,1760723438777,-500.0,0.00027622,2]
[391663750,1760723438786,-500.0,0.00027622,2]
[391663751,1760723438795,-500.0,0.00027622,2]
[391663752,1760723438804,-500.0,0.00027622,2]
[391663753,1760723438813,-500.0,0.00027622,2]
[391663754,1760723438821,-500.0,0.00027622,2]
[391663755,1760723438831,-500.0,0.00027622,2]
[391663756,1760723438840,-500.0,0.00027622,2]
[391663757,1760723438850,-500.0,0.00027622,2]
[391663759,1760723438859,-500.0,0.00027622,2]
[391663761,1760723438869,-500.0,0.00027622,2]
[391663763,1760723438879,-500.0,0.00027622,2]
[391663765,1760723438888,-500.0,0.00027622,2]
[391663767,1760723438898,-409.4577004,0.00027622,2]
[391663769,1760723438908,-292.62066582,0.00027622,2]
[391663771,1760723438918,-500.0,0.00027622,2]
[391663773,1760723438928,-273.29660081,0.00027622,2]
[391663775,1760723438938,-500.0,0.00027622,2]
[391663777,1760723438951,-500.0,0.00027622,2]
[391663778,1760723438961,-500.0,0.00027622,2]
[391663780,1760723438971,-500.0,0.00027622,2]
[391663782,1760723438981,-500.0,0.00027622,2]
[391663784,1760723438992,-500.0,0.00027622,2]
[391663786,1760723439002,-500.0,0.00027622,2]
[391663789,1760723439012,-500.0,0.00027622,2]
[391663791,1760723439022,-186.17412871,0.00027622,2]
[391663793,1760723439032,-500.0,0.00027622,2]
[391663795,1760723439042,-500.0,0.00027622,2]
[391663796,1760723439052,-500.0,0.00027622,2]
[391663798,1760723439063,-500.0,0.00027622,2]
[391663800,1760723439073,-500.0,0.00027622,2]
[391663802,1760723439083,-500.0,0.00027622,2]
[391663804,1760723439093,-340.65274765,0.00027622,2]
[391663806,1760723439102,-500.0,0.00027622,2]
[391663808,1760723439112,-500.0,0.00027622,2]
[391663810,1760723439121,-500.0,0.00027622,2]
[391663812,1760723439130,-500.0,0.00027622,2]
[391663814,1760723439141,-500.0,0.00027622,2]
[391663816,1760723439150,-500.0,0.00027622,2]
[391663818,1760723439159,-500.0,0.00027622,2]
[391663820,1760723439169,-50000.0,0.00027623,2]
[391663822,1760723439179,-62459.4435981,0.00027623,2]
[391663824,1760723439188,-162.48578327,0.00027623,2]
[391663826,1760723439197,-62459.4435981,0.00027625,2]
[391663828,1760723439207,-162.48578327,0.00027625,2]
[391663830,1760723439217,-1200.0,0.00027627,2]
[391663832,1760723439226,-477.74,0.00027629,7]
[391663834,1760723439235,-500.0,0.00027629,2]
[391663836,1760723439244,-4715.26,0.00027633,2]
[391663838,1760723439254,-500.0,0.00027646,2]
[391663840,1760723439264,-1000.0,0.00027646,2]
[391663842,1760723439273,-1000.0,0.00027646,2]
[391663844,1760723439283,-679.9,0.00027646,2]
[391663846,1760723439292,-150.0,0.00027646,2]
[391663848,1760723439301,-500.0,0.00027662,2]
[391663850,1760723439310,-371.0744302,0.00027662,2]
[391663852,1760723439319,-199.56516348,0.00027662,2]
[391663854,1760723439329,-62459.4435981,0.00027663,2]
[391663856,1760723439340,-162.48578327,0.00027663,2]
[391663858,1760723439350,-500.0,0.00027673,5]
[391663860,1760723439359,-500.0,0.00027673,5]
[391663862,1760723439368,-500.0,0.00027673,5]
[391663864,1760723439379,-500.0,0.00027673,5]
[391663866,1760723439388,-500.0,0.00027673,5]
[391663868,1760723439398,-500.0,0.00027673,5]
[391663870,1760723439407,-500.0,0.00027673,5]
[391663872,1760723439416,-500.0,0.00027673,5]
[391663874,1760723439425,-500.0,0.00027673,5]
[391663876,1760723439434,-505.2485941,0.00027673,5]
[391663878,1760723439444,-500.0,0.00027673,5]
[391663880,1760723439453,-500.0,0.00027673,2]
[391663882,1760723439462,-500.0,0.00027673,5]
[391663884,1760723439471,-500.0,0.00027673,5]
[391663886,1760723439480,-500.0,0.00027673,5]
[391663888,1760723439489,-500.0,0.00027673,5]
[391663890,1760723439499,-500.0,0.00027673,5]
[391663893,1760723439508,-505.7437,0.00027673,5]
[391663895,1760723439517,-500.0,0.00027673,3]
[391663897,1760723439525,-500.0,0.00027673,5]